fUSD/lending_fUSD_20240115
["ID","MTS","AMOUNT","RATE_DAILY","PERIOD"]
[311710862,1705348242930,-1055.49,0.00032876,2]
[311710864,1705348242939,-500.0,0.00032876,2]
[311710866,1705348242949,-500.0,0.00032876,2]
[311710868,1705348242958,-500.0,0.00032876,2]
[311710870,1705348242967,-500.0,0.00032876,2]
[311710872,1705348242977,-673.34,0.00032876,2]
[311710874,1705348242987,-500.0,0.00032876,2]
[311710876,1705348242998,-500.0,0.00032876,2]
[311710878,1705348243008,-500.0,0.00032876,2]
[311710880,1705348243018,-500.0,0.00032876,2]
[311710882,1705348243027,-500.0,0.00032876,2]
[311710883,1705348243037,-500.0,0.00032876,2]
[311710886,1705348243048,-1060.7,0.00032876,2]
[311710888,1705348243058,-589.17,0.00032876,2]
[311710890,1705348243068,-775.8,0.00032876,2]
[311710891,1705348243077,-500.0,0.00032876,2]
[311710892,1705348243086,-500.0,0.00032876,2]
[311710893,1705348243095,-523.26746958,0.00032876,2]
[311710894,1705348243104,-460.38751372,0.00032876,2]
[311710895,1705348243113,-500.0,0.00032876,2]
[311710896,1705348243122,-511.14,0.00032876,2]
[311710897,1705348243131,-531.2,0.00032876,2]
[311710898,1705348243140,-11.04600452,0.00032876,2]
[311710907,1705348243211,-488.95399548,0.00032876,2]
[311710909,1705348243221,-622.36,0.00032876,2]
[311710911,1705348243230,-708.16,0.00032876,2]
[311710913,1705348243239,-500.0,0.00032876,2]
[311710915,1705348243249,-439.84842124,0.00032876,2]
[311710917,1705348243258,-500.0,0.00032876,2]
[311710919,1705348243268,-500.0,0.00032876,2]
[311710921,1705348243277,-910.79,0.00032876,2]
[311710922,1705348243287,-531.58,0.00032876,2]
[311710925,1705348243298,-697.48,0.00032876,2]
[311710927,1705348243307,-500.0,0.00032876,2]
[311710929,1705348243317,-517.04398922,0.00032876,2]
[311710930,1705348243327,-338.29664719,0.00032876,2]
[311710942,1705348243427,-450.0,0.00032876,2]
[311710944,1705348243436,-500.0,0.00032876,2]
[311710946,1705348243445,-500.0,0.00032876,2]
[311710948,1705348243454,-632.74,0.00032876,2]
[311710950,1705348243464,-500.0,0.00032876,2]
[311710952,1705348243474,-500.0,0.00032876,2]
[311710954,1705348243483,-500.0,0.00032876,2]
[311710956,1705348243492,-500.0,0.00032876,2]
[311710958,1705348243501,-500.0,0.00032876,2]
[311710960,1705348243510,-746.34,0.00032876,2]
[311710962,1705348243519,-500.0,0.00032876,2]
[311710964,1705348243528,-500.0,0.00032876,2]
[311710966,1705348243537,-500.0,0.00032876,2]
[311710968,1705348243546,-500.0,0.00032876,2]
[311710970,1705348243556,-500.0,0.00032876,2]
[311710972,1705348243565,-210.38947636,0.00032876,2]
[311710974,1705348243574,-500.0,0.00032876,2]
[311710976,1705348243584,-500.0,0.00032876,2]
[311710978,1705348243593,-500.0,0.00032876,2]
[311710980,1705348243602,-894.78,0.00032876,2]
[311710982,1705348243612,-500.0,0.00032876,2]
[311710984,1705348243621,-531.31443338,0.00032876,9]
[311710986,1705348243630,-500.0,0.00032876,2]
[311710988,1705348243639,-556.38,0.00032876,2]
[311710990,1705348243648,-500.0,0.00032876,2]
[311710992,1705348243658,-504.6365883,0.00032876,2]
[311710994,1705348243667,-746.03,0.00032876,2]
[311710996,1705348243676,-500.0,0.00032876,2]
[311710998,1705348243686,-745.43,0.00032876,2]
[311711000,1705348243695,-500.0,0.00032876,2]
[311711002,1705348243704,-570.43,0.00032876,2]
[311711004,1705348243714,-500.0,0.00032876,2]
[311711006,1705348243724,-500.0,0.00032876,2]
[311711008,1705348243733,-500.0,0.00032876,2]
[311711010,1705348243743,-500.0,0.00032876,2]
[311711012,1705348243752,-500.0,0.00032876,2]
[311711014,1705348243761,-500.0,0.00032876,2]
[311711016,1705348243771,-500.0,0.00032876,2]
[311711018,1705348243780,-500.0,0.00032876,2]
[311711021,1705348243791,-500.0,0.00032876,2]
[311711023,1705348243800,-500.0,0.00032876,2]
[311711025,1705348243810,-673.47,0.00032876,2]
[311711027,1705348243819,-500.0,0.00032876,2]
[311711029,1705348243829,-500.0,0.00032876,2]
[311711031,1705348243838,-500.0,0.00032876,2]
[311711033,1705348243846,-500.0,0.00032876,2]
[311711035,1705348243856,-653.07,0.00032876,2]
[311711037,1705348243866,-1000.0,0.00032876,2]
[311711039,1705348243875,-550.18,0.00032876,2]
[311711041,1705348243885,-857.4,0.00032876,2]
[311711043,1705348243893,-500.0,0.00032876,2]
[311711045,1705348243902,-500.0,0.00032876,2]
[311711047,1705348243912,-509.65,0.00032876,2]
[311711049,1705348243920,-500.0,0.00032876,2]
[311711051,1705348243930,-320.86394905,0.00032876,2]
[311711053,1705348243939,-699.68,0.00032876,2]
[311711055,1705348243948,-700.2,0.00032876,2]
[311711057,1705348243958,-601.06,0.00032876,2]
[311711059,1705348243967,-500.0,0.00032876,2]
[311711061,1705348243977,-500.0,0.00032876,2]
[311711063,1705348243986,-500.0,0.00032876,2]
[311711065,1705348243996,-803.5,0.00032876,2]
[311711067,1705348244005,-500.0,0.00032876,2]
[311711069,1705348244014,-506.1,0.00032876,2]
[311711070,1705348244023,-500.0,0.00032876,2]
[311711072,1705348244032,-2299.62,0.00032876,2]
[311711074,1705348244041,-503.6426192,0.00032876,2]
[311711076,1705348244050,-500.0,0.00032876,2]
[311711078,1705348244060,-695.34,0.00032876,2]
[311711081,1705348244069,-500.0,0.00032876,2]
[311711082,1705348244078,-500.0,0.00032876,2]
[311711085,1705348244088,-500.0,0.00032876,2]
[311711086,1705348244096,-500.0,0.00032876,2]
[311711088,1705348244106,-500.08034439,0.00032876,2]
[311711090,1705348244115,-524.74065516,0.00032876,2]
[311711093,1705348244124,-500.0,0.00032876,2]
[311711095,1705348244133,-524.60952133,0.00032876,2]
[311711097,1705348244143,-365.43802203,0.00032876,2]
[311711098,1705348244152,-500.0,0.00032876,2]
[311711101,1705348244161,-500.0,0.00032876,2]
[311711103,1705348244170,-604.63,0.00032876,2]
[311711105,1705348244180,-500.0,0.00032876,2]
[311711107,1705348244189,-500.0,0.00032876,2]
[311711108,1705348244199,-500.0,0.00032876,2]
[311711110,1705348244208,-500.0,0.00032876,2]
[311711112,1705348244217,-500.0,0.00032876,2]
[311711114,1705348244228,-500.0,0.00032876,2]
[311711116,1705348244237,-500.0,0.00032876,2]
[311711118,1705348244249,-500.0,0.00032876,2]
[311711120,1705348244258,-830.95,0.00032876,2]
[311711123,1705348244267,-500.0,0.00032876,2]
[311711125,1705348244276,-808.31,0.00032876,2]
[311711126,1705348244285,-500.0,0.00032876,2]
[311711129,1705348244297,-239.25132296,0.00032876,2]
[311711130,1705348244306,-893.13,0.00032876,2]
[311711133,1705348244315,-500.0,0.00032876,2]
[311711135,1705348244325,-500.0,0.00032876,2]
[311711137,1705348244334,-500.0,0.00032876,2]
[311711139,1705348244343,-500.0,0.00032876,2]
[311711141,1705348244352,-539.43,0.00032876,2]
[311711143,1705348244362,-500.0,0.00032876,2]
[311711145,1705348244373,-500.0,0.00032876,2]
[311711147,1705348244382,-500.0,0.00032876,2]
[311711149,1705348244392,-253.01152683,0.00032876,2]
[311711151,1705348244401,-500.0,0.00032876,2]
[311711153,1705348244410,-500.0,0.00032876,2]
[311711155,1705348244420,-500.0,0.00032876,2]
[311711157,1705348244429,-919.06,0.00032876,2]
[311711159,1705348244439,-500.0,0.00032876,2]
[311711161,1705348244447,-505.7218544,0.00032876,2]
[311711163,1705348244456,-500.0,0.00032876,2]
[311711165,1705348244466,-500.0,0.00032876,2]
[311711166,1705348244476,-500.0,0.00032876,2]
[311711168,1705348244484,-500.0,0.00032876,2]
[311711170,1705348244493,-500.0,0.00032876,2]
[311711173,1705348244503,-231.12366434,0.00032876,2]
[311711174,1705348244512,-1201.46,0.00032876,2]
[311711176,1705348244521,-937.91,0.00032876,2]
[311711179,1705348244531,-949.7,0.00032876,2]
[311711180,1705348244540,-500.0,0.00032876,2]
[311711182,1705348244549,-517.84221126,0.00032876,2]
[311711185,1705348244559,-500.0,0.00032876,2]
[311711187,1705348244569,-500.0,0.00032876,2]
[311711189,1705348244586,-607.88,0.00032876,2]
[311711191,1705348244595,-500.0,0.00032876,2]
[311711193,1705348244604,-713.59,0.00032876,2]
[311711195,1705348244613,-500.0,0.00032876,2]
[311711197,1705348244622,-1534.84,0.00032876,2]
[311711199,1705348244631,-500.0,0.00032876,2]
[311711200,1705348244645,-500.0,0.00032876,2]
[311711203,1705348244655,-500.0,0.00032876,2]
[311711205,1705348244664,-836.93,0.00032876,2]
[311711206,1705348244673,-859.94,0.00032876,2]
[311711208,1705348244684,-500.0,0.00032876,2]
[311711209,1705348244693,-500.0,0.00032876,2]
[311711210,1705348244702,-500.0,0.00032876,2]
[311711211,1705348244712,-326.58918329,0.00032876,2]
[311711212,1705348244723,-500.0,0.00032876,2]
[311711213,1705348244732,-500.0,0.00032876,2]
[311711214,1705348244742,-300.0,0.00032876,2]
[311711216,1705348244752,-501.23511104,0.00032876,2]
[311711218,1705348244761,-500.0,0.00032876,2]
[311711220,1705348244771,-500.0,0.00032876,2]
[311711222,1705348244780,-1303.36,0.00032876,2]
[311711224,1705348244789,-533.38,0.00032876,2]
[311711226,1705348244799,-500.0,0.00032876,2]
[311711228,1705348244807,-531.48,0.00032876,2]
[311711230,1705348244817,-654.62,0.00032876,2]
[311711232,1705348244826,-573.31,0.00032876,2]
[311711234,1705348244835,-500.0,0.00032876,2]
[311711236,1705348244844,-500.0,0.00032876,2]
[311711238,1705348244853,-1206.01,0.00032876,2]
[311711240,1705348244862,-500.0,0.00032876,2]
[311711242,1705348244872,-500.0,0.00032876,2]
[311711244,1705348244881,-500.0,0.00032876,2]
[311711246,1705348244890,-500.0,0.00032876,2]
[311711248,1705348244899,-500.0,0.00032876,2]
[311711250,1705348244908,-500.0,0.00032876,2]
[311711252,1705348244917,-877.34,0.00032876,2]
[311711254,1705348244926,-889.25,0.00032876,2]
[311711255,1705348244936,-918.32,0.00032876,2]
[311711256,1705348244945,-500.0,0.00032876,2]
[311711257,1705348244954,-162.31399823,0.00032876,2]
[311711258,1705348244963,-500.0,0.00032876,2]
[311711259,1705348244973,-500.0,0.00032876,2]
[311711260,1705348244982,-500.0,0.00032876,2]
[311711261,1705348244991,-500.0,0.00032876,2]
[311711262,1705348245001,-500.0,0.00032876,2]
[311711263,1705348245010,-500.0,0.00032876,2]
[311711264,1705348245019,-500.0,0.00032876,2]
[311711265,1705348245030,-1158.27,0.00032876,2]
[311711266,1705348245041,-500.0,0.00032876,2]
[311711267,1705348245051,-500.0,0.00032876,2]
[311711268,1705348245063,-508.65163932,0.00032876,2]
[311711269,1705348245072,-1274.04,0.00032876,2]
[311711270,1705348245081,-500.0,0.00032876,2]
[311711271,1705348245091,-500.0,0.00032876,2]
[311711272,1705348245101,-500.0,0.00032876,2]
[311711273,1705348245111,-500.0,0.00032876,2]
[311711274,1705348245120,-538.27943349,0.00032876,2]
[311711275,1705348245130,-926.79,0.00032876,2]
[311711276,1705348245139,-500.0,0.00032876,2]
[311711277,1705348245148,-500.0,0.00032876,2]
[311711278,1705348245158,-850.44,0.00032876,2]
[311711279,1705348245167,-500.0,0.00032876,2]
[311711280,1705348245177,-519.13,0.00032876,2]
[311711281,1705348245186,-500.0,0.00032876,2]
[311711282,1705348245195,-787.93,0.00032876,2]
[311711283,1705348245205,-1028.09,0.00032876,2]
[311711284,1705348245214,-500.0,0.00032876,2]
[311711285,1705348245223,-733.89,0.00032876,2]
[311711287,1705348245233,-500.0,0.00032876,2]
[311711289,1705348245242,-964.27,0.00032876,2]
[311711291,1705348245251,-580.59,0.00032876,2]
[311711293,1705348245261,-500.0,0.00032876,2]
[311711295,1705348245270,-533.51765608,0.00032876,2]
[311711297,1705348245279,-904.22,0.00032876,2]
[311711300,1705348245288,-993.23,0.00032876,2]
[311711303,1705348245298,-500.0,0.00032876,2]
[311711305,1705348245307,-917.4,0.00032876,2]
[311711308,1705348245317,-500.0,0.00032876,2]
[311711311,1705348245326,-1510.01,0.00032876,2]
[311711314,1705348245335,-500.0,0.00032876,2]
[311711316,1705348245344,-1653.19,0.00032876,2]
[311711318,1705348245353,-500.0,0.00032876,2]
[311711321,1705348245363,-500.0,0.00032876,2]
[311711324,1705348245375,-500.0,0.00032876,2]
[311711327,1705348245384,-500.0,0.00032876,2]
[311711329,1705348245395,-6.45891565,0.00032876,2]
[311711335,1705348245428,-493.54108435,0.00032876,2]
[311711337,1705348245437,-714.55,0.00032876,2]
[311711339,1705348245447,-500.0,0.00032876,2]
[311711342,1705348245457,-526.76,0.00032876,2]
[311711345,1705348245467,-500.0,0.00032876,2]
[311711348,1705348245477,-585.4,0.00032876,2]
[311711351,1705348245485,-500.0,0.00032876,2]
[311711354,1705348245495,-1118.10478956,0.00032876,2]
[311711356,1705348245511,-197.05521044,0.00032876,2]
[311711358,1705348245520,-68.2018611,0.00032876,2]
[311711359,1705348245532,-520.0881389,0.00032876,2]
[311711360,1705348245541,-100.07127817,0.00032876,2]
[311711361,1705348245552,-315.19030927,0.00032876,2]
[311711364,1705348246531,-4000.0,0.0003,2]
[311711365,1705348246541,-150.0,0.00032587,2]
[311711366,1705348246551,-150.0,0.00032589,2]
[311711367,1705348246560,-150.0,0.00032604,2]
[311711368,1705348246569,-150.0,0.00032646,2]
[311711369,1705348246578,-150.0,0.00032679,2]
[311711370,1705348246588,-150.0,0.00032718,2]
[311711371,1705348246597,-150.0,0.00032768,2]
[311711372,1705348246607,-150.0,0.00032773,2]
[311711373,1705348246617,-150.0,0.00032815,2]
[311711374,1705348246627,-150.0,0.00032847,2]
[311711375,1705348246637,-150.0,0.0003285,2]
[311711376,1705348246647,-150.0,0.00032854,2]
[311711377,1705348246656,-775.35841256,0.00032876,2]
[311711378,1705348246666,-500.0,0.00032876,2]
[311711379,1705348246677,-737.8,0.00032876,2]
[311711380,1705348246687,-768.29,0.00032876,2]
[311711381,1705348246697,-801.04,0.00032876,2]
[311711382,1705348246707,-500.0,0.00032876,2]
[311711383,1705348246718,-155.200176,0.00032876,2]
[311711384,1705348246729,-500.0,0.00032876,2]
[311711385,1705348246740,-500.0,0.00032876,2]
[311711386,1705348246750,-712.65,0.00032876,2]
[311711387,1705348246760,-1018.95,0.00032876,2]
[311711388,1705348246771,-500.0,0.00032876,2]
[311711389,1705348246780,-500.0,0.00032876,2]
[311711390,1705348246789,-500.0,0.00032876,2]
[311711391,1705348246800,-500.0,0.00032876,2]
[311711392,1705348246810,-500.0,0.00032876,2]
[311711393,1705348246820,-844.47,0.00032876,2]
[311711394,1705348246830,-210.43916283,0.00032876,2]
[311711395,1705348246841,-1512.0,0.00032876,2]
[311711396,1705348246852,-773.7,0.00032876,2]
[311711397,1705348246862,-435.46423424,0.00032876,2]
[311711398,1705348246955,-150.0,0.00032727,2]
[311711399,1705348246966,-150.0,0.00032767,2]
[311711400,1705348246977,-64.53576576,0.00032876,2]
[311711401,1705348246988,-135.46423424,0.00032876,2]
[311711402,1705348247021,-150.0,0.0003268,2]
[311711403,1705348247031,-150.0,0.00032729,2]
[311711404,1705348247042,-945.56576576,0.00032876,2]
[311711405,1705348247054,-544.18238133,0.00032876,2]
[311711406,1705348247066,-912.47,0.00032876,2]
[311711407,1705348247076,-500.0,0.00032876,2]
[311711408,1705348247086,-500.0,0.00032876,2]
[311711409,1705348247097,-901.19,0.00032876,2]
[311711410,1705348247107,-500.0,0.00032876,2]
[311711411,1705348247117,-500.0,0.00032876,2]
[311711412,1705348247128,-500.0,0.00032876,2]
[311711413,1705348247139,-500.0,0.00032876,2]
[311711414,1705348247150,-500.0,0.00032876,2]
[311711415,1705348247159,-535.24,0.00032876,2]
[311711416,1705348247170,-500.0,0.00032876,2]
[311711417,1705348247179,-1053.29849322,0.00032876,2]
[311711418,1705348248869,-150.0,0.00032621,2]
[311711419,1705348248879,-150.0,0.00032643,2]
[311711420,1705348248888,-150.0,0.00032669,2]
[311711421,1705348248897,-150.0,0.00032671,2]
[311711422,1705348248906,-150.0,0.00032672,2]
[311711423,1705348248915,-150.0,0.00032762,2]
[311711424,1705348249404,-150.0,0.00032773,2]
[311711425,1705348249417,-150.0,0.00032801,2]
[311711426,1705348249427,-150.0,0.00032811,2]
[311711427,1705348249437,-150.0,0.0003282,2]
[311711428,1705348249447,-150.0,0.00032838,2]
[311711429,1705348249457,-509.01150678,0.00032876,2]
[311711430,1705348249468,-1500.0,0.00032876,2]
[311711431,1705348249477,-500.0,0.00032876,2]
[311711432,1705348249488,-500.0,0.00032876,2]
[311711433,1705348249497,-899.07,0.00032876,2]
[311711434,1705348249507,-906.66,0.00032876,2]
[311711435,1705348249517,-500.0,0.00032876,2]
[311711436,1705348249526,-500.0,0.00032876,2]
[311711437,1705348249535,-238.11748743,0.00032876,2]
[311711438,1705348249548,-470.83251257,0.00032876,2]
[311711439,1705348249557,-500.0,0.00032876,2]
[311711440,1705348249567,-1000.0,0.00032876,2]
[311711441,1705348249576,-500.0,0.00032876,2]
[311711442,1705348249585,-785.11755266,0.00032876,2]
[311711443,1705348249600,-118.75244734,0.00032876,2]
[311711444,1705348249613,-500.0,0.00032876,2]
[311711445,1705348249622,-500.0,0.00032876,2]
[311711446,1705348249631,-1033.16,0.00032876,2]
[311711447,1705348249640,-1372.08,0.00032876,2]
[311711448,1705348249650,-1374.74,0.00032876,2]
[311711449,1705348249659,-500.0,0.00032876,2]
[311711450,1705348249668,-521.86967819,0.00032876,2]
[311711451,1705348249678,-715.8,0.00032876,2]
[311711452,1705348249687,-500.0,0.00032876,2]
[311711453,1705348249697,-652.73,0.00032876,2]
[311711454,1705348249706,-689.12,0.00032876,2]
[311711455,1705348249715,-500.0,0.00032876,2]
[311711456,1705348249725,-500.0,0.00032876,2]
[311711457,1705348249735,-591.33,0.00032876,2]
[311711458,1705348249744,-421.44097447,0.00032876,2]
[311711459,1705348249758,-78.55902553,0.00032876,2]
[311711460,1705348249767,-737.61,0.00032876,2]
[311711461,1705348249776,-612.87054817,0.00032876,2]
[311711462,1705348249785,-500.0,0.00032876,2]
[311711463,1705348249795,-180.0948246,0.00032876,2]
[311711464,1705348249804,-500.0,0.00032876,2]
[311711465,1705348249814,-1658.1,0.00032876,2]
[311711466,1705348249825,-681.57,0.00032876,2]
[311711467,1705348249838,-500.0,0.00032876,2]
[311711468,1705348249847,-500.0,0.00032876,2]
[311711469,1705348249864,-500.0,0.00032876,2]
[311711470,1705348249876,-930.55,0.00032876,2]
[311711471,1705348249886,-501.51595318,0.00032876,2]
[311711472,1705348249895,-548.65,0.00032876,2]
[311711473,1705348249905,-921.89,0.00032876,2]
[311711474,1705348249915,-500.0,0.00032876,2]
[311711475,1705348249925,-500.0,0.00032876,2]
[311711476,1705348249934,-500.0,0.00032876,2]
[311711477,1705348249943,-602.04,0.00032876,2]
[311711478,1705348249953,-529.93,0.00032876,2]
[311711479,1705348249963,-500.0,0.00032876,2]
[311711480,1705348249973,-500.0,0.00032876,2]
[311711481,1705348249983,-500.0,0.00032876,2]
[311711482,1705348249992,-500.0,0.00032876,2]
[311711483,1705348250002,-513.57,0.00032876,2]
[311711484,1705348250012,-819.59,0.00032876,2]
[311711485,1705348250026,-1104.78,0.00032876,2]
[311711486,1705348250037,-500.0,0.00032876,2]
[311711487,1705348250047,-968.48,0.00032876,2]
[311711488,1705348250057,-1014.48,0.00032876,2]
[311711489,1705348250066,-597.83,0.00032876,2]
[311711490,1705348250076,-512.67,0.00032876,2]
[311711491,1705348250086,-502.82879366,0.00032876,2]
[311711492,1705348250096,-500.0,0.00032876,2]
[311711493,1705348250106,-1351.07,0.00032876,2]
[311711494,1705348250116,-500.0,0.00032876,2]
[311711495,1705348250126,-682.89,0.00032876,2]
[311711496,1705348250136,-500.0,0.00032876,2]
[311711497,1705348250146,-500.0,0.00032876,2]
[311711498,1705348250157,-500.0,0.00032876,2]
[311711499,1705348250167,-500.0,0.00032876,2]
[311711500,1705348250177,-507.23160165,0.00032876,2]
[311711501,1705348250188,-710.32,0.00032876,2]
[311711502,1705348250198,-500.0,0.00032876,2]
[311711503,1705348250207,-500.0,0.00032876,2]
[311711504,1705348250218,-1089.06,0.00032876,2]
[311711505,1705348250228,-500.0,0.00032876,2]
[311711506,1705348250239,-500.0,0.00032876,2]
[311711507,1705348250249,-500.0,0.00032876,2]
[311711508,1705348250259,-599.74,0.00032876,2]
[311711509,1705348250269,-1031.45,0.00032876,2]
[311711510,1705348250279,-808.28,0.00032876,2]
[311711511,1705348250289,-712.08,0.00032876,2]
[311711512,1705348250299,-510.10240287,0.00032876,2]
[311711513,1705348250310,-1003.06,0.00032876,2]
[311711514,1705348250320,-1286.58,0.00032876,2]
[311711515,1705348250330,-885.81,0.00032876,2]
[311711516,1705348250340,-500.0,0.00032876,2]
[311711517,1705348250350,-500.0,0.00032876,2]
[311711518,1705348250360,-500.0,0.00032876,2]
[311711519,1705348250371,-500.0,0.00032876,2]
[311711520,1705348250383,-500.0,0.00032876,2]
[311711521,1705348250393,-599.14,0.00032876,2]
[311711522,1705348250403,-500.0,0.00032876,2]
[311711523,1705348250413,-782.16,0.00032876,2]
[311711524,1705348250424,-1183.42,0.00032876,2]
[311711525,1705348250434,-500.0,0.00032876,2]
[311711526,1705348250444,-877.92,0.00032876,2]
[311711527,1705348250453,-500.0,0.00032876,2]
[311711528,1705348250464,-500.0,0.00032876,2]
[311711529,1705348250474,-500.0,0.00032876,2]
[311711530,1705348250484,-1022.5,0.00032876,2]
[311711531,1705348250494,-500.0,0.00032876,2]
[311711532,1705348250504,-500.0,0.00032876,2]
[311711533,1705348250514,-673.4,0.00032876,2]
[311711534,1705348250524,-1240.15,0.00032876,2]
[311711535,1705348250533,-500.0,0.00032876,2]
[311711536,1705348250543,-500.0,0.00032876,2]
[311711537,1705348250554,-500.0,0.00032876,2]
[311711538,1705348250563,-1127.7,0.00032876,2]
[311711539,1705348250573,-1083.16,0.00032876,2]
[311711540,1705348250582,-545.29765074,0.00032876,2]
[311711541,1705348250592,-500.0,0.00032876,2]
[311711542,1705348250602,-500.0,0.00032876,2]
[311711543,1705348250611,-500.0,0.00032876,2]
[311711544,1705348250621,-1338.97,0.00032876,2]
[311711545,1705348250630,-500.0,0.00032876,2]
[311711546,1705348250640,-500.0,0.00032876,2]
[311711547,1705348250650,-500.0,0.00032876,2]
[311711548,1705348250660,-1317.76,0.00032876,2]
[311711549,1705348250670,-500.0,0.00032876,2]
[311711550,1705348250680,-500.0,0.00032876,2]
[311711551,1705348250690,-500.0,0.00032876,2]
[311711552,1705348250700,-500.0,0.00032876,2]
[311711553,1705348250709,-500.0,0.00032876,2]
[311711554,1705348250719,-750.62,0.00032876,2]
[311711555,1705348250729,-500.0,0.00032876,2]
[311711556,1705348250738,-500.0,0.00032876,2]
[311711557,1705348250748,-1051.31,0.00032876,2]
[311711558,1705348250758,-500.0,0.00032876,2]
[311711559,1705348250768,-588.77,0.00032876,2]
[311711560,1705348250778,-500.0,0.00032876,2]
[311711561,1705348250788,-500.0,0.00032876,2]
[311711562,1705348250798,-500.0,0.00032876,2]
[311711563,1705348250808,-500.0,0.00032876,2]
[311711564,1705348250818,-228.0507559,0.00032876,2]
[311711565,1705348250828,-788.75,0.00032876,2]
[311711566,1705348250838,-168.27394398,0.00032876,2]
[311711567,1705348250848,-901.78,0.00032876,2]
[311711568,1705348250857,-500.0,0.00032876,2]
[311711569,1705348250867,-500.0,0.00032876,2]
[311711570,1705348250877,-500.0,0.00032876,2]
[311711571,1705348250886,-507.21,0.00032876,2]
[311711572,1705348250896,-500.0,0.00032876,2]
[311711573,1705348250906,-504.41915388,0.00032876,2]
[311711574,1705348250915,-912.18,0.00032876,2]
[311711575,1705348250925,-500.0,0.00032876,2]
[311711576,1705348250935,-922.15,0.00032876,2]
[311711577,1705348250944,-812.84,0.00032876,2]
[311711578,1705348250955,-500.0,0.00032876,2]
[311711579,1705348250964,-500.0,0.00032876,2]
[311711580,1705348250974,-726.13,0.00032876,2]
[311711581,1705348250984,-500.0,0.00032876,2]
[311711582,1705348250994,-583.16,0.00032876,2]
[311711583,1705348251004,-500.0,0.00032876,2]
[311711584,1705348251013,-873.93,0.00032876,2]
[311711585,1705348251023,-1290.56,0.00032876,2]
[311711586,1705348251033,-1393.17,0.00032876,2]
[311711587,1705348251043,-572.18,0.00032876,2]
[311711588,1705348251053,-759.56,0.00032876,2]
[311711589,1705348251062,-500.0,0.00032876,2]
[311711590,1705348251072,-500.0,0.00032876,2]
[311711591,1705348251083,-503.48309204,0.00032876,2]
[311711592,1705348251092,-500.0,0.00032876,2]
[311711593,1705348251102,-984.63,0.00032876,2]
[311711594,1705348251113,-500.0,0.00032876,2]
[311711595,1705348251123,-635.18,0.00032876,2]
[311711596,1705348251133,-500.0,0.00032876,2]
[311711597,1705348251143,-500.0,0.00032876,2]
[311711598,1705348251153,-500.0,0.00032876,2]
[311711599,1705348251163,-526.12,0.00032876,2]
[311711600,1705348251173,-681.77,0.00032876,2]
[311711601,1705348251182,-500.0,0.00032876,2]
[311711602,1705348251191,-692.58,0.00032876,2]
[311711603,1705348251201,-959.43,0.00032876,2]
[311711604,1705348251211,-500.0,0.00032876,2]
[311711605,1705348251221,-500.0,0.00032876,2]